bitfinex/quotes_BTCUSD_20250623
["timestamp","ask_amount","ask_price","bid_price","bid_amount"]
[1750722081704,0.95570111,105590.0,105580.0,0.00666118]
[1750722083560,0.61114186,105590.0,105580.0,0.00666118]
[1750722083878,1.03516866,105590.0,105570.0,0.0002]
[1750722084080,0.45536111,105580.0,105570.0,0.00024611]
[1750722084280,0.11080186,105580.0,105570.0,0.00024611]
[1750722084493,0.09550186,105580.0,105570.0,0.5764254]
[1750722084691,0.20030053,105600.0,105580.0,0.0327]
[1750722084919,0.09550186,105590.0,105580.0,0.37725925]
[1750722085119,0.09650186,105590.0,105580.0,0.37725925]
[1750722085615,0.20030053,105600.0,105590.0,0.0165]
[1750722085616,0.04086053,105600.0,105590.0,0.0165]
[1750722085816,0.43550186,105600.0,105580.0,0.36075925]
[1750722086244,0.43550186,105600.0,105580.0,0.0172]
[1750722086431,0.001,105590.0,105580.0,0.36675925]
[1750722086770,0.62366616,105600.0,105580.0,0.36075925]
[1750722087095,0.62466616,105600.0,105580.0,0.36075925]
[1750722088368,0.62566616,105600.0,105580.0,0.36275925]
[1750722088773,0.62466616,105600.0,105580.0,0.37785925]
[1750722089003,0.62466616,105600.0,105580.0,0.36275925]
[1750722089143,0.62466616,105600.0,105590.0,0.35965925]
[1750722089144,0.46526616,105600.0,105590.0,0.35965925]
[1750722089356,0.001,105600.0,105590.0,0.57414162]
[1750722089590,0.001,105600.0,105590.0,0.5930819]
[1750722089754,0.001,105600.0,105590.0,0.60255186]
[1750722089958,0.44743863,105630.0,105600.0,0.221793]
[1750722090163,0.09550186,105620.0,105610.0,0.0162]
[1750722090375,0.22116484,105640.0,105610.0,0.39589658]
[1750722090598,0.25486186,105630.0,105620.0,0.36065925]
[1750722090807,0.09550186,105630.0,105620.0,0.36065925]
[1750722091013,0.25486186,105630.0,105620.0,0.36065925]
[1750722091219,0.25486186,105630.0,105620.0,0.0161]
[1750722091416,0.25532247,105630.0,105620.0,0.0161]
[1750722091669,0.25532247,105630.0,105620.0,0.0151]
[1750722092102,0.25532247,105630.0,105610.0,0.36075925]
[1750722092486,0.25632247,105630.0,105610.0,0.36075925]
[1750722092865,0.25532247,105630.0,105610.0,0.36075925]
[1750722093074,0.25632247,105630.0,105620.0,0.001]
[1750722093272,0.25632247,105630.0,105610.0,0.56907204]
[1750722093480,0.25632247,105630.0,105610.0,0.55960333]
[1750722093749,0.25832247,105630.0,105610.0,0.57954066]
[1750722093958,0.09696247,105630.0,105610.0,0.58800919]
[1750722094183,0.09696247,105630.0,105610.0,0.5880091]
[1750722094361,0.00146061,105630.0,105620.0,0.56885285]
[1750722094574,0.00046061,105630.0,105620.0,0.016]
[1750722094776,0.00046061,105630.0,105620.0,0.36055925]
[1750722094913,0.00146061,105630.0,105610.0,0.71219168]
[1750722095292,0.00146061,105630.0,105620.0,0.02576772]
[1750722095417,0.00146061,105630.0,105620.0,0.0173]
[1750722095611,0.00046061,105630.0,105620.0,0.40369925]
[1750722096103,0.00146061,105630.0,105620.0,0.40969925]
[1750722096237,0.00246061,105630.0,105620.0,0.41269925]
[1750722096640,0.00246061,105630.0,105620.0,0.36985925]
[1750722096846,0.00246061,105630.0,105620.0,0.41269925]
[1750722097784,0.00246061,105630.0,105620.0,0.43786715]
[1750722098033,0.00246061,105630.0,105620.0,0.31106877]
[1750722098233,0.00246061,105630.0,105620.0,0.65562802]
[1750722098485,0.00246061,105630.0,105620.0,0.66509529]
[1750722099070,0.00246061,105630.0,105620.0,1.00965454]
[1750722099251,0.00246061,105630.0,105620.0,1.4451564]
[1750722100125,0.00246061,105630.0,105620.0,1.7413564]
[1750722100925,0.00246061,105630.0,105620.0,1.98341725]
[1750722101290,0.00246061,105630.0,105620.0,1.28527715]
[1750722101517,0.00246061,105630.0,105620.0,1.39185529]
[1750722101671,0.00146061,105630.0,105620.0,1.38885529]
[1750722101880,0.00046061,105630.0,105620.0,1.38285529]
[1750722102081,0.00146061,105630.0,105620.0,1.73341454]
[1750722102430,0.00246061,105630.0,105620.0,1.74241454]
[1750722102626,0.00146061,105630.0,105620.0,1.73341454]
[1750722102814,0.00246061,105630.0,105620.0,1.74041454]
[1750722106662,0.00246061,105630.0,105620.0,2.03661454]
[1750722111460,0.00246061,105630.0,105620.0,1.48997529]
[1750722111665,0.00246061,105630.0,105620.0,2.03653454]
[1750722112183,0.00246061,105630.0,105620.0,0.92245529]
[1750722112356,0.00246061,105630.0,105620.0,1.10875529]
[1750722112560,0.00246061,105630.0,105620.0,0.81255529]
[1750722112783,0.00246061,105630.0,105620.0,0.82795529]
[1750722114501,0.00246061,105630.0,105620.0,0.81255529]
[1750722114927,0.00246061,105630.0,105620.0,0.55638522]
[1750722115133,0.01786061,105630.0,105620.0,0.77724048]
[1750722115349,0.01786061,105630.0,105620.0,0.78670775]
[1750722115783,0.00246061,105630.0,105620.0,0.80240775]
[1750722116414,0.01766061,105630.0,105620.0,0.76777294]
[1750722116623,0.01766061,105630.0,105620.0,0.40427807]
[1750722116804,0.03326061,105630.0,105620.0,0.21492]
[1750722117073,0.03326061,105630.0,105620.0,0.05572]
[1750722117342,0.03326061,105630.0,105620.0,0.21492]
[1750722117774,0.03326061,105630.0,105620.0,0.2243879]
[1750722118451,0.03326061,105630.0,105620.0,0.21492]
[1750722118981,0.12876247,105630.0,105620.0,0.21492]
[1750722119838,0.12876247,105630.0,105620.0,0.013]
[1750722120533,0.15310881,105630.0,105620.0,0.013]
[1750722120764,0.84262754,105630.0,105620.0,0.013]
[1750722120991,0.86032979,105630.0,105620.0,0.013]
[1750722121962,0.3705,105620.0,105610.0,0.04272]
[1750722122200,0.49034407,105620.0,105610.0,0.04272]
[1750722122448,0.47264182,105620.0,105610.0,0.38727925]
[1750722122682,0.45754182,105620.0,105610.0,0.38727925]
[1750722122900,0.36203996,105620.0,105610.0,0.57665525]
[1750722123133,0.36203996,105620.0,105610.0,0.58612405]
[1750722123375,0.3554,105620.0,105610.0,0.58612405]
[1750722123582,0.3564,105620.0,105610.0,0.58712405]
[1750722123764,0.3564,105620.0,105610.0,0.59659276]
[1750722123993,0.3564,105620.0,105610.0,0.58712405]
[1750722124335,0.3564,105620.0,105610.0,0.57765525]
[1750722124561,0.3564,105620.0,105610.0,0.58712396]
[1750722124769,0.001,105620.0,105610.0,0.58712396]
[1750722125020,0.01706061,105630.0,105610.0,0.58612396]
[1750722125343,0.001,105620.0,105610.0,0.61106111]
[1750722125472,0.001,105620.0,105610.0,0.62052955]
[1750722126072,0.11256247,105630.0,105610.0,0.61452919]
[1750722126301,0.11256247,105630.0,105620.0,0.53391732]
[1750722126519,0.11356247,105630.0,105610.0,0.79954003]
[1750722126743,0.11256247,105630.0,105610.0,0.77157186]
[1750722126946,0.11256247,105630.0,105610.0,0.77157222]
[1750722127211,0.11256247,105630.0,105610.0,0.77157231]
[1750722127460,0.11256247,105630.0,105610.0,0.74640387]
[1750722127701,0.11256247,105630.0,105610.0,0.75587222]
[1750722127954,0.11256247,105630.0,105610.0,0.78134048]
[1750722128188,0.09596247,105630.0,105610.0,0.78034048]
[1750722128400,0.11206247,105630.0,105610.0,0.77287222]
[1750722128583,0.001,105620.0,105610.0,0.77687222]
[1750722128964,0.11206247,105630.0,105610.0,0.78034048]
[1750722129165,0.11306247,105630.0,105610.0,0.78234048]
[1750722129353,0.11306247,105630.0,105610.0,0.79180865]
[1750722129554,0.00046061,105630.0,105620.0,0.54338513]
[1750722129748,0.00046061,105630.0,105620.0,0.55285285]
[1750722130049,0.00046061,105630.0,105620.0,0.53291732]
[1750722130457,0.01686061,105630.0,105620.0,0.53291732]
[1750722130645,0.01686061,105630.0,105620.0,0.54238513]
[1750722130858,0.00046061,105630.0,105620.0,0.58698757]
[1750722131723,0.00046061,105630.0,105620.0,0.5775203]
[1750722131925,0.00046061,105630.0,105620.0,0.58698766]
[1750722132124,0.00046061,105630.0,105620.0,0.58798766]
[1750722132330,0.00046061,105630.0,105620.0,0.5785203]
[1750722132791,0.00046061,105630.0,105620.0,0.58798757]
[1750722132991,0.00146061,105630.0,105620.0,0.58798757]
[1750722134317,0.00146061,105630.0,105620.0,0.58798766]
[1750722134509,0.00046061,105630.0,105620.0,0.55011732]
[1750722134736,0.00046061,105630.0,105620.0,0.56905285]
[1750722134913,0.00046061,105630.0,105620.0,0.55285285]
[1750722135062,0.00146061,105630.0,105620.0,0.55485285]
[1750722135257,0.00146061,105630.0,105620.0,0.20182597]
[1750722135484,0.01716061,105630.0,105620.0,0.39431807]
[1750722135692,0.01716061,105630.0,105620.0,0.40378588]
[1750722135890,0.01716061,105630.0,105620.0,0.4132536]
[1750722136337,0.01716061,105630.0,105620.0,0.42272123]
[1750722136755,0.01716061,105630.0,105620.0,0.76728048]
[1750722137134,0.00146061,105630.0,105620.0,0.76728048]
[1750722137332,0.00146061,105630.0,105620.0,0.75781285]
[1750722138059,0.00146061,105630.0,105620.0,0.78298039]
[1750722138929,0.00146061,105630.0,105620.0,0.4289536]
[1750722139153,0.00146061,105630.0,105620.0,0.77351285]
[1750722139379,0.00146061,105630.0,105620.0,0.76728048]
[1750722139608,0.00146061,105630.0,105620.0,0.77674802]
[1750722140029,0.00146061,105630.0,105620.0,0.76728048]
[1750722140458,0.00146061,105630.0,105620.0,0.77674802]
[1750722141064,0.00146061,105630.0,105620.0,0.78621538]
[1750722141280,0.00146061,105630.0,105620.0,0.78621484]
[1750722141473,0.00146061,105630.0,105620.0,0.77674757]
[1750722141603,0.00146061,105630.0,105620.0,0.80151484]
[1750722142278,0.00146061,105630.0,105620.0,0.81701484]
[1750722143862,0.00146061,105630.0,105620.0,0.47245559]
[1750722144043,0.00146061,105630.0,105620.0,0.81701484]
[1750722145462,0.00146061,105630.0,105620.0,0.79204757]
[1750722145911,0.00146061,105630.0,105620.0,0.80151484]
[1750722146245,0.00146061,105630.0,105620.0,0.77674757]
[1750722146617,0.01706061,105630.0,105620.0,0.74834522]
[1750722146828,0.01706061,105630.0,105620.0,0.76728039]
[1750722147030,0.01706061,105630.0,105620.0,0.75781285]
[1750722147236,0.01706061,105630.0,105620.0,0.76728039]
[1750722147443,0.01706061,105630.0,105620.0,0.77674775]
[1750722147656,0.01706061,105630.0,105620.0,0.77674784]
[1750722147860,0.01706061,105630.0,105620.0,0.20492]
[1750722148067,0.03286061,105630.0,105620.0,0.20492]
[1750722148508,0.03286061,105630.0,105620.0,0.2143879]
[1750722148716,0.03286061,105630.0,105620.0,0.55894715]
[1750722149176,0.03286061,105630.0,105620.0,0.56841496]
[1750722149178,0.03286061,105630.0,105620.0,0.55894715]
[1750722149666,0.03286061,105630.0,105620.0,0.54947925]
[1750722149902,0.12836247,105630.0,105620.0,0.003]
[1750722150141,0.47292172,105630.0,105620.0,0.003]
[1750722150385,0.81292172,105630.0,105620.0,0.003]
[1750722150624,0.83556669,105630.0,105620.0,0.003]
[1750722151106,0.85010296,105630.0,105620.0,0.003]
[1750722151347,0.95220676,105630.0,105620.0,0.003]
[1750722151578,0.96989163,105630.0,105620.0,0.003]
[1750722152472,0.96989467,105630.0,105620.0,0.003]
[1750722154015,0.85673681,105630.0,105620.0,0.003]
[1750722158411,0.85010296,105630.0,105620.0,0.003]
[1750722158619,0.85672961,105630.0,105620.0,0.003]
[1750722158758,0.85010296,105630.0,105620.0,0.003]
[1750722158962,0.82746257,105630.0,105620.0,0.003]
[1750722159160,0.46836247,105630.0,105620.0,0.003]
[1750722159373,0.59628247,105630.0,105620.0,0.34755925]
[1750722159636,0.00146061,105630.0,105620.0,0.59782003]
[1750722159849,0.00146061,105630.0,105620.0,0.6500073]
[1750722160189,0.00146061,105630.0,105620.0,1.15400655]
[1750722160788,0.00046061,105630.0,105620.0,1.15100655]
[1750722161018,0.00046061,105630.0,105620.0,0.8084473]
[1750722161220,0.00146061,105630.0,105620.0,0.8124473]
[1750722161412,0.00046061,105630.0,105620.0,0.8084473]
[1750722161701,0.00046061,105630.0,105620.0,0.44295342]
[1750722161903,0.00146061,105630.0,105620.0,0.56898522]
[1750722162103,0.00246061,105630.0,105620.0,0.62004057]
[1750722162314,0.00246061,105630.0,105620.0,0.62950811]
[1750722162513,0.00246061,105630.0,105620.0,0.62004057]
[1750722162719,0.00246061,105630.0,105620.0,0.62004039]
[1750722162914,0.00246061,105630.0,105620.0,0.62950811]
[1750722163320,0.00246061,105630.0,105620.0,0.58678811]
[1750722163543,0.00146061,105630.0,105620.0,0.61104057]
[1750722163748,0.00146061,105630.0,105620.0,0.60704057]
[1750722163948,0.00246061,105630.0,105620.0,0.61950811]
[1750722164493,0.00146061,105630.0,105620.0,0.62597556]
[1750722164788,0.00146061,105630.0,105620.0,0.62797556]
[1750722165908,0.00146061,105630.0,105620.0,0.61850811]
[1750722166861,0.00146061,105630.0,105620.0,0.60904057]
[1750722167066,0.00146061,105630.0,105620.0,0.61850811]
[1750722167267,0.00146061,105630.0,105620.0,0.62797547]
[1750722167447,0.00146061,105630.0,105620.0,0.61850811]
[1750722167658,0.00146061,105630.0,105620.0,0.62797556]
[1750722168745,0.00146061,105630.0,105620.0,0.62797502]
[1750722168949,0.00146061,105630.0,105620.0,0.27394841]
[1750722169119,0.00146061,105630.0,105620.0,0.60904021]
[1750722169526,0.00146061,105630.0,105620.0,0.62797484]
[1750722170183,0.00146061,105630.0,105620.0,0.26448096]
[1750722170348,0.00146061,105630.0,105620.0,0.62797502]
[1750722170724,0.00146061,105630.0,105620.0,0.61850766]
[1750722171651,0.00146061,105630.0,105620.0,0.62797502]
[1750722171850,0.00146061,105630.0,105620.0,0.61850766]
[1750722172312,0.00146061,105630.0,105620.0,0.59010504]
[1750722172656,0.00146061,105630.0,105620.0,0.58063732]
[1750722172870,0.00146061,105630.0,105620.0,0.59957267]
[1750722173073,0.11226247,105630.0,105620.0,0.39531807]
[1750722173864,0.11226247,105630.0,105620.0,0.74934522]
[1750722174062,0.11226247,105630.0,105620.0,0.73987732]
[1750722174445,0.09696247,105630.0,105620.0,0.74934513]
[1750722174626,0.09696247,105630.0,105620.0,0.75881276]
[1750722174942,0.09696247,105630.0,105620.0,0.75881285]
[1750722175158,0.09696247,105630.0,105620.0,0.60904039]
[1750722175358,0.09696247,105630.0,105620.0,0.60904048]
[1750722175567,0.09696247,105630.0,105620.0,0.59957285]
[1750722175770,0.09696247,105630.0,105620.0,0.59010513]
[1750722176103,0.09696247,105630.0,105620.0,0.59957285]
[1750722176306,0.09696247,105630.0,105620.0,0.58063732]
[1750722176496,0.09696247,105630.0,105620.0,0.59010522]
[1750722176710,0.09696247,105630.0,105620.0,0.59957303]
[1750722177010,0.09696247,105630.0,105620.0,0.60904075]
[1750722177621,0.09696247,105630.0,105620.0,0.59957303]
[1750722177812,0.09696247,105630.0,105620.0,0.59010522]
[1750722178027,0.09696247,105630.0,105620.0,0.59957303]
[1750722178371,0.09696247,105630.0,105620.0,0.60904075]
[1750722178566,0.09696247,105630.0,105620.0,0.59957303]
[1750722178772,0.09696247,105630.0,105620.0,0.60904075]
[1750722178977,0.09696247,105630.0,105620.0,0.59957303]
[1750722179178,0.09696247,105630.0,105620.0,0.23607807]
[1750722179378,0.11216247,105630.0,105620.0,0.23607807]
[1750722179777,0.11216247,105630.0,105620.0,0.24554597]
[1750722180190,0.11216247,105630.0,105620.0,0.23607807]
[1750722180391,0.11216247,105630.0,105620.0,0.25501378]
[1750722180544,0.11216247,105630.0,105620.0,0.04672]
[1750722180760,0.12766247,105630.0,105620.0,0.04672]
[1750722182286,0.11216247,105630.0,105620.0,0.04672]
[1750722186906,0.47212172,105630.0,105620.0,0.04672]
[1750722187508,0.12756247,105630.0,105620.0,0.04672]
[1750722187708,0.11216247,105630.0,105620.0,0.04672]
[1750722189488,0.09696247,105630.0,105620.0,0.06252]
[1750722189685,0.11296247,105630.0,105620.0,0.04672]
[1750722191130,0.12836247,105630.0,105620.0,0.04672]
[1750722192235,0.11296247,105630.0,105620.0,0.04672]
[1750722192728,0.09696247,105630.0,105620.0,0.04672]
[1750722198470,0.11256247,105630.0,105620.0,0.04672]
[1750722203234,0.00146061,105630.0,105620.0,0.25376069]
[1750722203446,0.00146061,105630.0,105620.0,0.47236069]
[1750722203656,0.00146061,105630.0,105620.0,1.50147919]
[1750722203860,0.00146061,105630.0,105620.0,1.50247919]
[1750722204276,0.0001,105640.0,105630.0,0.26860007]
[1750722204501,0.0001,105640.0,105630.0,1.03426043]
[1750722204699,0.00014603,105640.0,105630.0,1.03326043]
[1750722204849,0.00014603,105640.0,105630.0,1.09780128]
[1750722205056,0.00014603,105640.0,105630.0,1.44336053]
[1750722205426,0.0001,105650.0,105640.0,1.29127882]
[1750722205635,0.0001,105650.0,105640.0,1.04222143]
[1750722205884,0.0001,105650.0,105640.0,1.07053408]
[1750722206103,0.0001,105650.0,105640.0,1.05599323]
[1750722206341,0.0001,105650.0,105640.0,0.71143398]
[1750722206559,0.0001,105650.0,105640.0,0.37143398]
[1750722206774,0.0021,105650.0,105640.0,0.60417872]
[1750722207208,0.0021,105650.0,105640.0,0.25961947]
[1750722207422,0.0001,105650.0,105640.0,0.59217872]
[1750722207645,0.0011,105650.0,105640.0,0.59817872]
[1750722208257,0.0011,105650.0,105640.0,0.25361947]
[1750722208471,0.0011,105650.0,105640.0,0.58207872]
[1750722208678,0.0001,105650.0,105640.0,0.57607872]
[1750722208923,0.0021,105650.0,105640.0,0.60367872]
[1750722209199,0.0001,105650.0,105640.0,0.24711947]
[1750722209435,0.0001,105650.0,105640.0,0.59167872]
[1750722209728,0.0011,105650.0,105640.0,0.59867872]
[1750722209930,0.0001,105650.0,105640.0,0.59167872]
[1750722210162,0.0011,105650.0,105640.0,0.60167872]
[1750722210623,0.0011,105650.0,105640.0,0.25711947]
[1750722210856,0.0011,105650.0,105640.0,0.82659872]
[1750722212467,0.0021,105650.0,105640.0,0.83259872]
[1750722213974,0.0021,105650.0,105640.0,0.92810058]
[1750722215853,0.0021,105650.0,105640.0,1.26810058]
[1750722216254,0.0021,105650.0,105640.0,1.28264143]
[1750722216683,0.0021,105650.0,105640.0,1.26810058]
[1750722217836,0.0021,105650.0,105640.0,1.29655358]
[1750722218072,0.0021,105650.0,105640.0,1.29695358]
[1750722218295,0.0021,105650.0,105640.0,1.26850058]
[1750722219205,0.0021,105650.0,105640.0,1.29107116]
[1750722219904,0.0021,105650.0,105640.0,1.34721907]
[1750722220111,0.0021,105650.0,105640.0,0.89123765]
[1750722220324,0.0011,105650.0,105640.0,1.2297969]
[1750722220521,0.0001,105650.0,105640.0,1.2197969]
[1750722220742,0.0011,105650.0,105640.0,0.92341895]
[1750722220949,0.0031,105650.0,105640.0,0.93741895]
[1750722221842,0.0031,105650.0,105640.0,0.95271895]
[1750722222079,0.0021,105650.0,105640.0,0.9090969]
[1750722222313,0.0031,105650.0,105640.0,0.9140969]
[1750722223862,0.0031,105650.0,105640.0,0.56953765]
[1750722224062,0.0031,105650.0,105640.0,0.9140969]
[1750722225694,0.0031,105650.0,105640.0,0.6893769]
[1750722225831,0.0031,105650.0,105640.0,0.9139369]
[1750722227248,0.0031,105650.0,105640.0,0.8575093]
[1750722227941,0.0031,105650.0,105640.0,0.8422093]
[1750722228525,0.0031,105650.0,105640.0,0.85320344]
[1750722229019,0.0031,105650.0,105640.0,0.48185005]
[1750722229251,0.0187,105650.0,105640.0,0.09813483]
[1750722229485,0.0187,105650.0,105640.0,0.32516844]
[1750722229705,0.0187,105650.0,105640.0,0.10756767]
[1750722229919,0.04475706,105650.0,105640.0,0.10756767]
[1750722230190,0.12940186,105650.0,105640.0,0.06985628]
[1750722230427,0.81396111,105650.0,105640.0,0.019]
[1750722230899,0.46940186,105650.0,105640.0,0.019]
[1750722231117,0.81396111,105650.0,105640.0,0.019]
[1750722231372,0.81296111,105650.0,105640.0,0.014]
[1750722231587,0.81296111,105650.0,105640.0,0.018]
[1750722232265,0.34,105640.0,105630.0,0.001]
[1750722232511,0.98538111,105640.0,105630.0,0.001]
[1750722233586,1.01426891,105640.0,105630.0,0.001]
[1750722234786,1.01526891,105640.0,105630.0,0.001]
[1750722235544,6.52644546,105640.0,105630.0,0.001]
[1750722235751,6.18188621,105640.0,105630.0,0.001]
[1750722236390,6.17527971,105640.0,105630.0,0.001]
[1750722237292,6.07980976,105640.0,105630.0,0.001]
[1750722237774,6.13064976,105640.0,105630.0,0.001]
[1750722237989,6.52520901,105640.0,105630.0,0.001]
[1750722238194,6.18064976,105640.0,105630.0,0.001]
[1750722238805,6.52520901,105640.0,105630.0,0.001]
[1750722239008,6.62067896,105640.0,105630.0,0.001]
[1750722239219,6.62167896,105640.0,105630.0,0.001]
[1750722239452,0.56293051,105640.0,105630.0,0.001]
[1750722239663,0.68913051,105640.0,105630.0,0.001]
[1750722239875,1.01914891,105640.0,105630.0,0.001]
[1750722241111,0.67458966,105640.0,105630.0,0.001]
[1750722241264,1.01914891,105640.0,105630.0,0.001]
[1750722243071,0.67458966,105640.0,105630.0,0.001]
[1750722243282,1.01914891,105640.0,105630.0,0.001]
[1750722244671,0.84294891,105640.0,105630.0,0.001]
[1750722245155,0.65790966,105640.0,105630.0,0.001]
[1750722245868,1.00246891,105640.0,105630.0,0.001]
[1750722246301,0.09750186,105640.0,105630.0,0.20927369]
[1750722246510,0.002,105640.0,105630.0,0.59559932]
[1750722247006,0.002,105640.0,105630.0,0.58613303]
[1750722247198,0.002,105640.0,105630.0,0.59559967]
[1750722247480,0.002,105640.0,105630.0,0.60506622]
[1750722247712,0.003,105640.0,105630.0,0.25604042]
[1750722247972,0.002,105640.0,105630.0,0.26550697]
[1750722248184,0.002,105640.0,105630.0,0.26850697]
[1750722248372,0.002,105640.0,105630.0,0.25904042]
[1750722249052,0.002,105640.0,105630.0,0.24957378]
[1750722249259,0.002,105640.0,105630.0,0.24010705]
[1750722249476,0.002,105640.0,105630.0,0.0251]
[1750722249700,0.55905831,105640.0,105630.0,0.009]
[1750722249919,0.89905831,105640.0,105630.0,0.009]
[1750722251441,1.07429831,105640.0,105630.0,0.009]
[1750722252557,1.08883916,105640.0,105630.0,0.009]
[1750722252770,6.56939561,105640.0,105630.0,0.009]
[1750722252986,6.64192447,105640.0,105630.0,0.009]
[1750722253198,6.64092447,105640.0,105630.0,0.004]
[1750722253635,6.64392447,105640.0,105630.0,0.004]
[1750722253850,6.21036802,105640.0,105630.0,0.004]
[1750722254057,6.30583797,105640.0,105630.0,0.001]
[1750722254286,6.75899786,105640.0,105630.0,0.002]
[1750722254493,6.76759697,105640.0,105630.0,0.002]
[1750722254946,6.76559048,105640.0,105630.0,0.002]
[1750722255158,6.77905587,105640.0,105630.0,0.003]
[1750722255845,6.79798701,105640.0,105630.0,0.003]
[1750722256066,6.76959048,105640.0,105630.0,0.003]
[1750722256268,6.77905587,105640.0,105630.0,0.003]
[1750722256476,6.76959048,105640.0,105630.0,0.003]
[1750722256664,6.76960414,105640.0,105630.0,0.003]
[1750722257361,6.79773203,105640.0,105630.0,0.003]
[1750722258164,6.80654964,105640.0,105630.0,0.003]
[1750722258591,6.81601503,105640.0,105630.0,0.003]
[1750722259008,6.80719742,105640.0,105630.0,0.003]
[1750722259212,6.86308317,105640.0,105630.0,0.003]
[1750722259413,6.84415212,105640.0,105630.0,0.003]
[1750722259618,6.87239334,105640.0,105630.0,0.003]
[1750722259783,6.81603564,105640.0,105630.0,0.003]
[1750722259950,6.79842503,105640.0,105630.0,0.003]
[1750722260601,6.85478273,105640.0,105630.0,0.003]
[1750722260820,6.79842503,105640.0,105630.0,0.003]
[1750722262635,6.81735608,105640.0,105630.0,0.003]
[1750722262843,6.79842662,105640.0,105630.0,0.003]
[1750722263074,6.85543457,105640.0,105630.0,0.003]
[1750722263305,6.85543448,105640.0,105630.0,0.003]
[1750722263502,6.84596918,105640.0,105630.0,0.003]
[1750722263676,6.85543466,105640.0,105630.0,0.003]
[1750722263881,6.86490041,105640.0,105630.0,0.003]
[1750722264109,6.85543466,105640.0,105630.0,0.003]
[1750722264313,6.85443466,105640.0,105630.0,0.002]
[1750722264531,6.85443457,105640.0,105630.0,0.002]
[1750722264728,6.86390005,105640.0,105630.0,0.002]
[1750722264958,0.01454085,105620.0,105590.0,0.0002]
[1750722265111,0.71583831,105610.0,105590.0,0.01636061]
[1750722265779,5.48055645,105600.0,105590.0,0.00066061]
[1750722265982,0.88195831,105600.0,105590.0,0.00066061]
[1750722266172,0.91269916,105600.0,105590.0,0.00066061]
[1750722266382,0.3559,105590.0,105580.0,0.0002]
[1750722266600,1.08685916,105590.0,105580.0,0.00024603]
[1750722266800,1.2114782,105590.0,105580.0,0.00024603]
[1750722267443,1.18893342,105590.0,105580.0,0.00024603]
[1750722267778,6.26246394,105590.0,105580.0,0.00524603]
[1750722267984,6.25585963,105590.0,105580.0,0.00024603]
[1750722268185,6.26246116,105590.0,105580.0,0.00024603]
[1750722268386,6.24093064,105590.0,105580.0,0.00224603]
[1750722268609,6.23432911,105590.0,105580.0,0.00224603]
[1750722269194,6.26343574,105590.0,105580.0,0.00224603]
[1750722269586,1.21343574,105590.0,105580.0,0.00224603]
[1750722269793,0.99263489,105590.0,105580.0,0.00224603]
[1750722270001,0.64052849,105590.0,105580.0,0.01754603]
[1750722270406,0.12660849,105590.0,105580.0,0.01754603]
[1750722270607,0.30048849,105590.0,105580.0,0.03394603]
[1750722270860,0.30148849,105590.0,105580.0,0.03394603]
[1750722271710,0.12560849,105590.0,105580.0,0.03194603]
[1750722271914,0.29944849,105590.0,105580.0,0.03194603]
[1750722272125,0.30044849,105590.0,105580.0,0.03794603]
[1750722272518,0.30044849,105590.0,105580.0,0.03894603]
[1750722272739,0.30044849,105590.0,105580.0,0.02254603]
[1750722272940,0.30028849,105590.0,105580.0,0.02254603]
[1750722274940,0.17552,105590.0,105580.0,0.03814603]
[1750722275157,0.17552,105590.0,105580.0,0.04761752]
[1750722275645,0.17552,105590.0,105580.0,0.03814603]
[1750722275862,0.17552,105590.0,105580.0,0.23704715]
[1750722276078,0.17552,105590.0,105580.0,0.22757584]
[1750722276303,0.17552,105590.0,105580.0,0.04761743]
[1750722276527,0.002,105590.0,105580.0,0.25598959]
[1750722276769,0.002,105590.0,105580.0,0.25598977]
[1750722276988,0.002,105590.0,105580.0,0.24651855]
[1750722277200,0.002,105590.0,105580.0,0.25598959]
[1750722277436,0.002,105590.0,105580.0,0.25598977]
[1750722277648,0.002,105590.0,105580.0,0.23704724]
[1750722277970,0.002,105590.0,105580.0,0.24651855]
[1750722278378,0.002,105590.0,105580.0,0.23704724]
[1750722278607,0.002,105590.0,105580.0,0.24651855]
[1750722279524,0.002,105590.0,105580.0,0.25598977]
[1750722279737,0.002,105590.0,105580.0,0.24651855]
[1750722279940,0.002,105590.0,105580.0,0.25598977]
[1750722280528,0.002,105590.0,105580.0,0.24651855]
[1750722280738,0.002,105590.0,105580.0,0.26546072]
[1750722280953,0.002,105590.0,105580.0,0.78114906]
[1750722281180,0.002,105590.0,105580.0,0.87665092]
[1750722281387,0.002,105590.0,105580.0,1.21665092]
[1750722281820,0.6809373,105630.0,105580.0,1.13498962]
[1750722282036,0.54195831,105620.0,105590.0,0.25001978]
[1750722282271,0.11140186,105620.0,105600.0,0.0137]
[1750722283551,0.28616186,105620.0,105600.0,0.0137]
[1750722284204,0.11140186,105620.0,105600.0,0.0137]
[1750722284426,0.28604186,105620.0,105600.0,0.0137]
[1750722284878,0.29004186,105620.0,105600.0,0.0137]
[1750722285294,0.0159,105610.0,105600.0,0.001]
[1750722285511,0.54195831,105610.0,105600.0,0.001]
[1750722285720,0.11140186,105610.0,105600.0,0.001]
[1750722285920,0.48144271,105610.0,105600.0,0.001]
[1750722286169,0.46594271,105610.0,105600.0,0.001]
[1750722286377,0.46594271,105610.0,105590.0,0.0156]
[1750722286602,0.26978186,105600.0,105590.0,0.0156]
[1750722287760,0.26978186,105600.0,105580.0,0.03234603]
[1750722288204,0.17528,105600.0,105590.0,0.0371]
[1750722288402,0.001,105600.0,105590.0,0.0371]
[1750722288884,0.001,105600.0,105590.0,0.0381]
[1750722289319,0.001,105600.0,105590.0,0.0371]
[1750722289716,0.17588,105600.0,105590.0,0.0401]
[1750722290508,0.17588,105600.0,105590.0,0.04957059]
[1750722290875,0.17588,105600.0,105590.0,0.0401]
[1750722292345,0.17588,105600.0,105590.0,0.0236]
[1750722296017,0.17588,105600.0,105590.0,0.03307059]
[1750722296228,0.17588,105600.0,105590.0,0.0236]
[1750722297324,0.17588,105600.0,105590.0,0.0389]
[1750722299511,0.52063346,105600.0,105590.0,0.0236]
[1750722299720,0.61613532,105600.0,105590.0,0.008]
[1750722299932,0.27138186,105600.0,105590.0,0.008]
[1750722301022,0.63123532,105600.0,105590.0,0.008]
[1750722301721,0.28648186,105600.0,105590.0,0.008]
[1750722301940,0.63123532,105600.0,105590.0,0.008]
[1750722303845,6.58883633,105600.0,105580.0,0.00024603]
[1750722304065,0.82629617,105590.0,105580.0,0.00024603]
[1750722305554,0.45250186,105590.0,105580.0,0.00024603]
[1750722305765,0.79725532,105590.0,105580.0,0.00024603]